[Event "FIDE World Rapid Chess Championship 2021"]
[White "Suleymanli, Aydin"]
[Black "Socko, Bartosz"]
[WhiteFideId "13413937"]
[BlackFideId "1107038"]
[WhiteElo "2202"]
[BlackElo "2562"]
[Result "1/2-1/2"]
[Round "09"]
[TimeControl "900+10"]
[Date "2021.12.27"]
[WhiteClock "0:00:54"]
[BlackClock "0:05:46"]

1. d4 {[%clk 0:15:00]}  e6 {[%clk 0:15:00]} 2. c4 {[%clk 0:15:00]}  b6 {[%clk 0:15:00]} 3. a3 {[%clk 0:15:00]}  c5 {[%clk 0:15:00]} 4. d5 {[%clk 0:15:00]}  Nf6 {[%clk 0:13:56]} 5. Nc3 {[%clk 0:13:58]}  exd5 {[%clk 0:13:56]} 6. cxd5 {[%clk 0:13:58]}  d6 {[%clk 0:13:56]} 7. e4 {[%clk 0:13:58]}  a6 {[%clk 0:13:56]} 8. f4 {[%clk 0:13:58]}  Be7 {[%clk 0:13:56]} 9. Nf3 {[%clk 0:13:58]}  Bg4 {[%clk 0:13:56]} 10. Be2 {[%clk 0:13:58]}  O-O {[%clk 0:13:56]} 11. e5 {[%clk 0:13:58]}  Ne8 {[%clk 0:13:56]} 12. O-O {[%clk 0:13:58]}  Nd7 {[%clk 0:13:56]} 13. Nd2 {[%clk 0:13:58]}  Bxe2 {[%clk 0:13:38]} 14. Qxe2 {[%clk 0:12:12]}  b5 {[%clk 0:13:38]} 15. e6 {[%clk 0:12:12]}  Nb6 {[%clk 0:13:38]} 16. exf7+ {[%clk 0:10:57]}  Rxf7 {[%clk 0:13:00]} 17. Nde4 {[%clk 0:10:57]}  Nc7 {[%clk 0:13:08]} 18. Rd1 {[%clk 0:08:01]}  Qd7 {[%clk 0:13:08]} 19. Be3 {[%clk 0:08:01]}  Nc4 {[%clk 0:12:28]} 20. b4 {[%clk 0:06:28]}  cxb4 {[%clk 0:12:28]} 21. axb4 {[%clk 0:06:28]}  Re8 {[%clk 0:12:28]} 22. g3 {[%clk 0:06:28]}  Bf6 {[%clk 0:11:53]} 23. Bd4 {[%clk 0:05:02]}  Bxd4+ {[%clk 0:11:53]} 24. Rxd4 {[%clk 0:05:02]}  Rfe7 {[%clk 0:11:53]} 25. Qh5 {[%clk 0:04:32]}  Ne3 {[%clk 0:10:00]} 26. Qe2 {[%clk 0:04:32]}  Nc4 {[%clk 0:09:29]} 27. Qh5 {[%clk 0:00:54]}  Ne3 {[%clk 0:05:46]} 28. Qe2 {[%clk 0:00:54]} 1/2-1/2


[Site "http://www.Chess.com"]

[Event "FIDE World Rapid Chess Championship 2021"]
[White "Parligras, Mircea-Emilian"]
[Black "Babazada, Khazar"]
[WhiteFideId "1204297"]
[BlackFideId "13413554"]
[WhiteElo "2550"]
[BlackElo "2170"]
[Result "1/2-1/2"]
[Round "09"]
[TimeControl "900+10"]
[Date "2021.12.27"]
[WhiteClock "0:04:03"]
[BlackClock "0:08:55"]

1. d4 {[%clk 0:15:00]}  g6 {[%clk 0:15:00]} 2. e4 {[%clk 0:15:00]}  Bg7 {[%clk 0:15:00]} 3. c4 {[%clk 0:15:00]}  d6 {[%clk 0:15:00]} 4. Nc3 {[%clk 0:15:00]}  Nf6 {[%clk 0:15:00]} 5. h3 {[%clk 0:15:00]}  O-O {[%clk 0:15:00]} 6. Be3 {[%clk 0:15:00]}  Nbd7 {[%clk 0:15:00]} 7. Nf3 {[%clk 0:15:00]}  e5 {[%clk 0:15:00]} 8. d5 {[%clk 0:15:00]}  Nc5 {[%clk 0:15:00]} 9. Nd2 {[%clk 0:15:00]}  a5 {[%clk 0:15:00]} 10. g4 {[%clk 0:15:00]}  c6 {[%clk 0:15:00]} 11. Be2 {[%clk 0:16:13]}  Bd7 {[%clk 0:14:43]} 12. g5 {[%clk 0:16:13]}  Ne8 {[%clk 0:14:43]} 13. h4 {[%clk 0:16:13]}  f5 {[%clk 0:14:43]} 14. f3 {[%clk 0:16:13]}  a4 {[%clk 0:13:34]} 15. Qc2 {[%clk 0:15:40]}  Qa5 {[%clk 0:13:34]} 16. a3 {[%clk 0:12:55]}  Nc7 {[%clk 0:13:26]} 17. h5 {[%clk 0:12:55]}  Rfc8 {[%clk 0:13:11]} 18. hxg6 {[%clk 0:11:48]}  hxg6 {[%clk 0:13:11]} 19. Kf1 {[%clk 0:10:03]}  cxd5 {[%clk 0:11:15]} 20. cxd5 {[%clk 0:10:03]}  Nb5 {[%clk 0:11:15]} 21. Nc4 {[%clk 0:09:28]}  Qc7 {[%clk 0:10:55]} 22. Nxb5 {[%clk 0:07:29]}  Bxb5 {[%clk 0:10:44]} 23. exf5 {[%clk 0:07:29]}  Nb3 {[%clk 0:10:44]} 24. f6 {[%clk 0:07:29]}  Bxc4 {[%clk 0:10:44]} 25. Qxg6 {[%clk 0:04:09]}  Bxe2+ {[%clk 0:10:22]} 26. Kg1 {[%clk 0:04:09]}  Bd3 {[%clk 0:10:22]} 27. Qxd3 {[%clk 0:04:09]}  Qc2 {[%clk 0:10:22]} 28. Rd1 {[%clk 0:04:09]}  Qxd3 {[%clk 0:10:22]} 29. Rxd3 {[%clk 0:04:09]}  Bxf6 {[%clk 0:08:55]} 30. gxf6 {[%clk 0:04:03]}  Kf7 {[%clk 0:08:55]} 31. Rh7+ {[%clk 0:04:03]}  Kxf6 {[%clk 0:08:55]} 32. Rh6+ {[%clk 0:04:03]}  Kf5 {[%clk 0:08:55]} 33. Rh5+ {[%clk 0:04:03]}  Kf6 {[%clk 0:08:55]} 34. Rh6+ {[%clk 0:04:03]} 1/2-1/2


[Site "http://www.Chess.com"]

[Event "FIDE World Rapid Chess Championship 2021"]
[White "Ivic, Velimir"]
[Black "Sjugirov, Sanan"]
[WhiteFideId "950122"]
[BlackFideId "4189302"]
[WhiteElo "2357"]
[BlackElo "2634"]
[Result "1-0"]
[Round "09"]
[TimeControl "900+10"]
[Date "2021.12.27"]
[WhiteClock "0:01:33"]
[BlackClock "0:00:35"]

1. e4 {[%clk 0:15:00]}  e5 {[%clk 0:15:00]} 2. Nf3 {[%clk 0:15:00]}  Nc6 {[%clk 0:15:00]} 3. Bb5 {[%clk 0:15:00]}  a6 {[%clk 0:15:00]} 4. Ba4 {[%clk 0:15:00]}  Nf6 {[%clk 0:15:00]} 5. O-O {[%clk 0:15:00]}  Be7 {[%clk 0:15:00]} 6. d3 {[%clk 0:15:00]}  b5 {[%clk 0:15:00]} 7. Bb3 {[%clk 0:15:00]}  d6 {[%clk 0:15:00]} 8. c3 {[%clk 0:15:00]}  Na5 {[%clk 0:15:00]} 9. Bc2 {[%clk 0:15:00]}  c5 {[%clk 0:15:00]} 10. d4 {[%clk 0:15:00]}  cxd4 {[%clk 0:15:54]} 11. cxd4 {[%clk 0:15:51]}  Nc6 {[%clk 0:15:54]} 12. d5 {[%clk 0:15:51]}  Nb4 {[%clk 0:15:54]} 13. Bb3 {[%clk 0:15:51]}  a5 {[%clk 0:15:54]} 14. a3 {[%clk 0:15:51]}  Na6 {[%clk 0:15:54]} 15. Bc2 {[%clk 0:14:37]}  O-O {[%clk 0:14:40]} 16. Be3 {[%clk 0:14:37]}  Bd7 {[%clk 0:14:40]} 17. Nc3 {[%clk 0:13:41]}  Qb8 {[%clk 0:13:41]} 18. Qe2 {[%clk 0:13:41]}  b4 {[%clk 0:13:04]} 19. axb4 {[%clk 0:11:45]}  axb4 {[%clk 0:11:55]} 20. Na4 {[%clk 0:11:23]}  b3 {[%clk 0:11:55]} 21. Bd3 {[%clk 0:10:37]}  Nb4 {[%clk 0:08:12]} 22. Nb6 {[%clk 0:10:37]}  Rxa1 {[%clk 0:08:12]} 23. Rxa1 {[%clk 0:10:06]}  Bg4 {[%clk 0:08:12]} 24. Ra3 {[%clk 0:10:06]}  Bxf3 {[%clk 0:05:41]} 25. gxf3 {[%clk 0:09:46]}  Bd8 {[%clk 0:05:41]} 26. Rxb3 {[%clk 0:09:46]}  Nxd3 {[%clk 0:05:41]} 27. Qxd3 {[%clk 0:09:46]}  Bxb6 {[%clk 0:05:41]} 28. Rxb6 {[%clk 0:09:46]}  Qd8 {[%clk 0:05:41]} 29. Qa3 {[%clk 0:09:44]}  Ne8 {[%clk 0:00:58]} 30. Ra6 {[%clk 0:09:44]}  f5 {[%clk 0:00:58]} 31. Ra8 {[%clk 0:09:44]}  Qf6 {[%clk 0:00:58]} 32. Qa4 {[%clk 0:06:38]}  Qf7 {[%clk 0:01:16]} 33. b4 {[%clk 0:05:55]}  fxe4 {[%clk 0:00:17]} 34. fxe4 {[%clk 0:05:55]}  Qg6+ {[%clk 0:00:17]} 35. Kf1 {[%clk 0:05:55]}  Nf6 {[%clk 0:00:17]} 36. Rxf8+ {[%clk 0:05:55]}  Kxf8 {[%clk 0:00:17]} 37. b5 {[%clk 0:05:55]}  Nxe4 {[%clk 0:00:17]} 38. b6 {[%clk 0:05:55]}  Nc3 {[%clk 0:00:17]} 39. Qa8+ {[%clk 0:04:41]}  Kf7 {[%clk 0:00:17]} 40. Qb7+ {[%clk 0:04:41]}  Kf6 {[%clk 0:00:35]} 41. Qc8 {[%clk 0:01:33]}  Qd3+ {[%clk 0:00:35]} 42. Kg2 {[%clk 0:01:33]}  Qe4+ {[%clk 0:00:35]} 43. f3 {[%clk 0:01:33]}  Qxe3 {[%clk 0:00:35]} 44. Qe6+ {[%clk 0:01:33]}  Kg5 {[%clk 0:00:35]} 45. h4+ {[%clk 0:01:33]}  Kh5 {[%clk 0:00:35]} 46. Qg4+ {[%clk 0:01:33]}  Kh6 {[%clk 0:00:35]} 47. Qg5+ {[%clk 0:01:33]} 1-0


[Site "http://www.Chess.com"]

[Event "FIDE World Rapid Chess Championship 2021"]
[White "Artemiev, Vladislav"]
[Black "Christiansen, Johan-Sebastian"]
[WhiteFideId "24101605"]
[BlackFideId "1512668"]
[WhiteElo "2714"]
[BlackElo "2522"]
[Result "1-0"]
[Round "09"]
[TimeControl "900+10"]
[Date "2021.12.27"]
[WhiteClock "0:00:15"]
[BlackClock "0:00:08"]

1. Nf3 {[%clk 0:15:00]}  c5 {[%clk 0:15:00]} 2. b3 {[%clk 0:15:00]}  d6 {[%clk 0:15:00]} 3. c4 {[%clk 0:15:00]}  e5 {[%clk 0:15:00]} 4. d3 {[%clk 0:15:00]}  f5 {[%clk 0:15:00]} 5. Nc3 {[%clk 0:15:00]}  Nf6 {[%clk 0:15:00]} 6. g3 {[%clk 0:15:00]}  Nc6 {[%clk 0:15:00]} 7. Bg2 {[%clk 0:15:00]}  g6 {[%clk 0:15:05]} 8. O-O {[%clk 0:15:11]}  Bg7 {[%clk 0:15:05]} 9. Bg5 {[%clk 0:15:10]}  O-O {[%clk 0:11:25]} 10. Nd5 {[%clk 0:15:10]}  Be6 {[%clk 0:11:25]} 11. Nd2 {[%clk 0:15:10]}  Qd7 {[%clk 0:11:25]} 12. Bxf6 {[%clk 0:15:10]}  Bxf6 {[%clk 0:11:25]} 13. Rb1 {[%clk 0:15:10]}  Kg7 {[%clk 0:13:08]} 14. a3 {[%clk 0:12:10]}  Bxd5 {[%clk 0:13:08]} 15. Bxd5 {[%clk 0:12:10]}  a5 {[%clk 0:13:08]} 16. e3 {[%clk 0:11:33]}  Rab8 {[%clk 0:11:37]} 17. Rc1 {[%clk 0:11:33]}  b5 {[%clk 0:10:41]} 18. Nb1 {[%clk 0:09:50]}  Ne7 {[%clk 0:08:05]} 19. Bg2 {[%clk 0:09:37]}  Rfe8 {[%clk 0:08:05]} 20. Nc3 {[%clk 0:07:42]}  b4 {[%clk 0:01:25]} 21. axb4 {[%clk 0:07:42]}  Rxb4 {[%clk 0:01:25]} 22. Nb5 {[%clk 0:07:42]}  Rb8 {[%clk 0:01:25]} 23. Ra1 {[%clk 0:07:42]}  R8xb5 {[%clk 0:01:25]} 24. cxb5 {[%clk 0:07:42]}  Rxb5 {[%clk 0:01:25]} 25. Qd2 {[%clk 0:03:43]}  Qd8 {[%clk 0:06:03]} 26. Rfd1 {[%clk 0:03:43]}  d5 {[%clk 0:06:03]} 27. e4 {[%clk 0:03:43]}  d4 {[%clk 0:06:03]} 28. Qc2 {[%clk 0:03:43]}  Qb6 {[%clk 0:06:03]} 29. Ra3 {[%clk 0:03:43]}  f4 {[%clk 0:03:31]} 30. Bh3 {[%clk 0:03:02]}  Qb7 {[%clk 0:03:31]} 31. Be6 {[%clk 0:03:02]}  Nc6 {[%clk 0:01:29]} 32. Qe2 {[%clk 0:03:02]}  Qe7 {[%clk 0:01:29]} 33. Bd5 {[%clk 0:03:02]}  Qd6 {[%clk 0:01:29]} 34. Qg4 {[%clk 0:03:02]}  fxg3 {[%clk 0:01:29]} 35. fxg3 {[%clk 0:03:02]}  Rb8 {[%clk 0:00:50]} 36. Bxc6 {[%clk 0:01:32]}  Qxc6 {[%clk 0:00:50]} 37. Rxa5 {[%clk 0:01:32]}  Rb7 {[%clk 0:00:50]} 38. Rf1 {[%clk 0:01:32]}  h5 {[%clk 0:00:50]} 39. Qf3 {[%clk 0:01:32]}  Qb6 {[%clk 0:00:50]} 40. Ra8 {[%clk 0:01:32]}  Rf7 {[%clk 0:00:42]} 41. g4 {[%clk 0:00:53]}  Qb7 {[%clk 0:00:42]} 42. Ra2 {[%clk 0:00:53]}  Qxb3 {[%clk 0:00:42]} 43. Rg2 {[%clk 0:00:53]}  hxg4 {[%clk 0:00:08]} 44. Qxg4 {[%clk 0:00:15]}  g5 {[%clk 0:00:08]} 45. Rg3 {[%clk 0:00:15]}  c4 {[%clk 0:00:08]} 46. Qe6 {[%clk 0:00:15]}  Kf8 {[%clk 0:00:08]} 47. Rgf3 {[%clk 0:00:15]}  cxd3 {[%clk 0:00:08]} 48. Qxb3 {[%clk 0:00:15]} 1-0


[Site "http://www.Chess.com"]

[Event "FIDE World Rapid Chess Championship 2021"]
[White "Sargissian, Gabriel"]
[Black "Pichot, Alan"]
[WhiteFideId "13300881"]
[BlackFideId "110973"]
[WhiteElo "2693"]
[BlackElo "2523"]
[Result "1-0"]
[Round "09"]
[TimeControl "900+10"]
[Date "2021.12.27"]
[WhiteClock "0:06:14"]
[BlackClock "0:06:36"]

1. d4 {[%clk 0:15:00]}  Nf6 {[%clk 0:15:00]} 2. c4 {[%clk 0:15:00]}  e6 {[%clk 0:15:00]} 3. Nc3 {[%clk 0:15:00]}  Bb4 {[%clk 0:15:00]} 4. e3 {[%clk 0:15:00]}  O-O {[%clk 0:15:00]} 5. Bd3 {[%clk 0:15:00]}  Bxc3+ {[%clk 0:15:00]} 6. bxc3 {[%clk 0:15:00]}  d6 {[%clk 0:15:00]} 7. e4 {[%clk 0:15:00]}  e5 {[%clk 0:15:00]} 8. Ne2 {[%clk 0:15:00]}  Nc6 {[%clk 0:15:00]} 9. f3 {[%clk 0:15:08]}  b6 {[%clk 0:15:11]} 10. Be3 {[%clk 0:15:08]}  Ba6 {[%clk 0:15:11]} 11. Ng3 {[%clk 0:15:08]}  Qe8 {[%clk 0:14:07]} 12. O-O {[%clk 0:13:30]}  Na5 {[%clk 0:14:07]} 13. Qe2 {[%clk 0:12:48]}  Qa4 {[%clk 0:13:15]} 14. f4 {[%clk 0:12:48]}  exf4 {[%clk 0:12:46]} 15. Rxf4 {[%clk 0:11:12]}  Ne8 {[%clk 0:12:46]} 16. e5 {[%clk 0:10:13]}  Bxc4 {[%clk 0:06:50]} 17. Bxh7+ {[%clk 0:10:13]}  Kxh7 {[%clk 0:06:50]} 18. Qh5+ {[%clk 0:10:13]}  Kg8 {[%clk 0:06:50]} 19. Nf5 {[%clk 0:09:21]}  Qd7 {[%clk 0:06:46]} 20. Nh6+ {[%clk 0:09:21]}  gxh6 {[%clk 0:06:36]} 21. Rg4+ {[%clk 0:06:14]}  Ng7 {[%clk 0:06:36]} 22. Rxg7+ {[%clk 0:06:14]}  Kxg7 {[%clk 0:06:36]} 23. Bxh6+ {[%clk 0:06:14]} 1-0


[Site "http://www.Chess.com"]

[Event "FIDE World Rapid Chess Championship 2021"]
[White "Demchenko, Anton"]
[Black "Yuffa, Daniil"]
[WhiteFideId "4160258"]
[BlackFideId "24131423"]
[WhiteElo "2666"]
[BlackElo "2514"]
[Result "1-0"]
[Round "09"]
[TimeControl "900+10"]
[Date "2021.12.27"]
[WhiteClock "0:01:21"]
[BlackClock "0:00:47"]

1. e4 {[%clk 0:15:00]}  c5 {[%clk 0:15:00]} 2. Nf3 {[%clk 0:15:00]}  d6 {[%clk 0:15:00]} 3. d4 {[%clk 0:15:00]}  cxd4 {[%clk 0:15:00]} 4. Qxd4 {[%clk 0:15:00]}  Nf6 {[%clk 0:15:00]} 5. Nc3 {[%clk 0:15:00]}  Nc6 {[%clk 0:15:00]} 6. Qe3 {[%clk 0:15:00]}  g6 {[%clk 0:15:00]} 7. h3 {[%clk 0:15:00]}  Bg7 {[%clk 0:15:00]} 8. Bc4 {[%clk 0:15:00]}  O-O {[%clk 0:15:00]} 9. O-O {[%clk 0:15:00]}  a6 {[%clk 0:15:00]} 10. a4 {[%clk 0:15:00]}  Qc7 {[%clk 0:15:00]} 11. Qe2 {[%clk 0:16:23]}  e6 {[%clk 0:14:31]} 12. Rd1 {[%clk 0:16:23]}  Nd7 {[%clk 0:14:31]} 13. Bb3 {[%clk 0:16:08]}  Nc5 {[%clk 0:14:09]} 14. Bf4 {[%clk 0:13:01]}  Ne5 {[%clk 0:13:41]} 15. Nxe5 {[%clk 0:13:01]}  Bxe5 {[%clk 0:13:41]} 16. Bh6 {[%clk 0:13:01]}  Re8 {[%clk 0:13:45]} 17. f4 {[%clk 0:09:53]}  Bh8 {[%clk 0:13:45]} 18. Qd2 {[%clk 0:09:53]}  Rb8 {[%clk 0:13:32]} 19. Qxd6 {[%clk 0:08:24]}  Qxd6 {[%clk 0:09:02]} 20. Rxd6 {[%clk 0:08:24]}  Bxc3 {[%clk 0:09:02]} 21. bxc3 {[%clk 0:08:24]}  Nxe4 {[%clk 0:09:02]} 22. Rd4 {[%clk 0:08:24]}  Nxc3 {[%clk 0:09:22]} 23. Re1 {[%clk 0:04:35]}  b5 {[%clk 0:07:07]} 24. axb5 {[%clk 0:04:35]}  Nxb5 {[%clk 0:07:15]} 25. Rd3 {[%clk 0:01:52]}  Rb6 {[%clk 0:04:28]} 26. c4 {[%clk 0:02:00]}  Rd6 {[%clk 0:02:28]} 27. Red1 {[%clk 0:02:00]}  Rxd3 {[%clk 0:02:28]} 28. Rxd3 {[%clk 0:02:00]}  Na7 {[%clk 0:02:28]} 29. Ba4 {[%clk 0:02:00]}  Rf8 {[%clk 0:00:47]} 30. Kf2 {[%clk 0:01:21]}  a5 {[%clk 0:00:47]} 31. Ke3 {[%clk 0:01:21]}  f6 {[%clk 0:00:47]} 32. Bxf8 {[%clk 0:01:21]}  Kxf8 {[%clk 0:00:47]} 33. Rd8+ {[%clk 0:01:21]}  Ke7 {[%clk 0:00:47]} 34. Rh8 {[%clk 0:01:21]}  Kd6 {[%clk 0:00:47]} 35. Rxh7 {[%clk 0:01:21]}  Nc6 {[%clk 0:00:47]} 36. Rg7 {[%clk 0:01:21]}  Ne7 {[%clk 0:00:47]} 37. c5+ {[%clk 0:01:21]}  Kd5 {[%clk 0:00:47]} 1-0


[Site "http://www.Chess.com"]

[Event "FIDE World Rapid Chess Championship 2021"]
[White "Riazantsev, Alexander"]
[Black "Czarnota, Pawel"]
[WhiteFideId "4125029"]
[BlackFideId "1121219"]
[WhiteElo "2632"]
[BlackElo "2511"]
[Result "1/2-1/2"]
[Round "09"]
[TimeControl "900+10"]
[Date "2021.12.27"]
[WhiteClock "0:09:35"]
[BlackClock "0:11:39"]

1. d4 {[%clk 0:15:00]}  Nf6 {[%clk 0:15:00]} 2. c4 {[%clk 0:15:00]}  e6 {[%clk 0:15:00]} 3. Nf3 {[%clk 0:15:00]}  d5 {[%clk 0:15:00]} 4. Bg5 {[%clk 0:15:00]}  Be7 {[%clk 0:15:00]} 5. e3 {[%clk 0:15:00]}  h6 {[%clk 0:15:00]} 6. Bxf6 {[%clk 0:15:00]}  Bxf6 {[%clk 0:15:00]} 7. Qc2 {[%clk 0:15:00]}  O-O {[%clk 0:15:00]} 8. h4 {[%clk 0:15:00]}  c5 {[%clk 0:15:00]} 9. g4 {[%clk 0:15:00]}  g6 {[%clk 0:15:00]} 10. g5 {[%clk 0:15:00]}  hxg5 {[%clk 0:15:00]} 11. hxg5 {[%clk 0:15:00]}  Bg7 {[%clk 0:14:29]} 12. dxc5 {[%clk 0:16:42]}  Nc6 {[%clk 0:14:29]} 13. Nc3 {[%clk 0:16:42]}  Qa5 {[%clk 0:14:29]} 14. O-O-O {[%clk 0:16:42]}  Qxc5 {[%clk 0:12:47]} 15. Kb1 {[%clk 0:16:25]}  Rd8 {[%clk 0:12:47]} 16. Rh4 {[%clk 0:16:25]}  a6 {[%clk 0:12:47]} 17. a3 {[%clk 0:14:45]}  b5 {[%clk 0:12:18]} 18. cxb5 {[%clk 0:13:05]}  axb5 {[%clk 0:12:00]} 19. Nxb5 {[%clk 0:13:05]}  Qb6 {[%clk 0:12:00]} 20. Rc1 {[%clk 0:13:05]}  Bd7 {[%clk 0:12:00]} 21. Qc5 {[%clk 0:10:08]}  Qb7 {[%clk 0:12:00]} 22. Rc2 {[%clk 0:10:08]}  Rdb8 {[%clk 0:12:00]} 23. Bd3 {[%clk 0:09:35]}  Bf8 {[%clk 0:11:39]} 24. Qc3 {[%clk 0:09:35]}  Bg7 {[%clk 0:11:39]} 25. Qc5 {[%clk 0:09:35]}  Bf8 {[%clk 0:11:39]} 26. Qc3 {[%clk 0:09:35]}  Bg7 {[%clk 0:11:39]} 27. Qc5 {[%clk 0:09:35]} 1/2-1/2


[Site "http://www.Chess.com"]

[Event "FIDE World Rapid Chess Championship 2021"]
[White "Vidit, Santosh Gujrathi"]
[Black "Nihal, Sarin"]
[WhiteFideId "5029465"]
[BlackFideId "25092340"]
[WhiteElo "2629"]
[BlackElo "2500"]
[Result "1/2-1/2"]
[Round "09"]
[TimeControl "900+10"]
[Date "2021.12.27"]
[WhiteClock "0:06:31"]
[BlackClock "0:10:29"]

1. d4 {[%clk 0:15:00]}  Nf6 {[%clk 0:15:00]} 2. c4 {[%clk 0:15:00]}  e6 {[%clk 0:15:00]} 3. Nc3 {[%clk 0:15:00]}  Bb4 {[%clk 0:15:00]} 4. Qc2 {[%clk 0:15:00]}  d5 {[%clk 0:15:00]} 5. cxd5 {[%clk 0:15:00]}  Qxd5 {[%clk 0:15:00]} 6. e3 {[%clk 0:15:00]}  c5 {[%clk 0:15:00]} 7. Bd2 {[%clk 0:15:00]}  Bxc3 {[%clk 0:15:00]} 8. bxc3 {[%clk 0:15:00]}  b6 {[%clk 0:15:00]} 9. f3 {[%clk 0:15:00]}  Qd7 {[%clk 0:15:10]} 10. e4 {[%clk 0:12:46]}  cxd4 {[%clk 0:14:23]} 11. cxd4 {[%clk 0:12:46]}  O-O {[%clk 0:14:23]} 12. Be3 {[%clk 0:12:55]}  Nc6 {[%clk 0:12:25]} 13. Qb2 {[%clk 0:12:55]}  Bb7 {[%clk 0:11:01]} 14. Bb5 {[%clk 0:11:30]}  Ne8 {[%clk 0:11:01]} 15. Ne2 {[%clk 0:11:30]}  Nd6 {[%clk 0:11:01]} 16. O-O {[%clk 0:06:31]}  Nxb5 {[%clk 0:10:29]} 17. Qxb5 {[%clk 0:06:31]}  Rfd8 {[%clk 0:10:29]} 18. Rfc1 {[%clk 0:06:31]} 1/2-1/2


[Site "http://www.Chess.com"]

[Event "FIDE World Rapid Chess Championship 2021"]
[White "Petrosyan, Manuel"]
[Black "Dreev, Aleksey"]
[WhiteFideId "13300857"]
[BlackFideId "4100107"]
[WhiteElo "2514"]
[BlackElo "2621"]
[Result "1/2-1/2"]
[Round "09"]
[TimeControl "900+10"]
[Date "2021.12.27"]
[WhiteClock "0:00:19"]
[BlackClock "0:00:59"]

1. d4 {[%clk 0:15:00]}  Nf6 {[%clk 0:15:00]} 2. c4 {[%clk 0:15:00]}  e6 {[%clk 0:15:00]} 3. Nc3 {[%clk 0:15:00]}  d5 {[%clk 0:15:00]} 4. cxd5 {[%clk 0:15:00]}  exd5 {[%clk 0:15:00]} 5. Bg5 {[%clk 0:15:00]}  c6 {[%clk 0:15:00]} 6. e3 {[%clk 0:15:00]}  Be7 {[%clk 0:15:00]} 7. Bd3 {[%clk 0:15:00]}  O-O {[%clk 0:15:00]} 8. Qc2 {[%clk 0:14:36]}  h6 {[%clk 0:15:53]} 9. Bh4 {[%clk 0:14:36]}  Re8 {[%clk 0:15:53]} 10. Nge2 {[%clk 0:14:36]}  Nh5 {[%clk 0:15:53]} 11. Bxe7 {[%clk 0:14:36]}  Qxe7 {[%clk 0:15:53]} 12. O-O {[%clk 0:14:36]}  Nd7 {[%clk 0:15:53]} 13. Rab1 {[%clk 0:14:36]}  Nb6 {[%clk 0:15:53]} 14. b4 {[%clk 0:14:36]}  a6 {[%clk 0:15:53]} 15. a4 {[%clk 0:14:36]}  Nf6 {[%clk 0:15:53]} 16. a5 {[%clk 0:13:57]}  Nbd7 {[%clk 0:15:43]} 17. Na4 {[%clk 0:13:57]}  Ne4 {[%clk 0:15:43]} 18. Nc5 {[%clk 0:12:47]}  Ndf6 {[%clk 0:15:43]} 19. Nc3 {[%clk 0:12:47]}  Bf5 {[%clk 0:15:43]} 20. Rbe1 {[%clk 0:12:47]}  Qc7 {[%clk 0:15:43]} 21. f3 {[%clk 0:12:47]}  Nxc5 {[%clk 0:15:43]} 22. Bxf5 {[%clk 0:12:47]}  Ne6 {[%clk 0:15:43]} 23. Na4 {[%clk 0:12:47]}  Rad8 {[%clk 0:15:43]} 24. Qc3 {[%clk 0:12:47]}  Re7 {[%clk 0:15:43]} 25. Nc5 {[%clk 0:12:47]}  Ng5 {[%clk 0:15:43]} 26. h4 {[%clk 0:12:47]}  Ne6 {[%clk 0:15:43]} 27. Bxe6 {[%clk 0:12:47]}  fxe6 {[%clk 0:15:43]} 28. f4 {[%clk 0:12:47]}  Ree8 {[%clk 0:15:43]} 29. g3 {[%clk 0:12:47]}  Qf7 {[%clk 0:15:43]} 30. Kg2 {[%clk 0:12:47]}  Rb8 {[%clk 0:15:43]} 31. e4 {[%clk 0:12:47]}  dxe4 {[%clk 0:15:43]} 32. Nxe4 {[%clk 0:12:47]}  Nxe4 {[%clk 0:15:43]} 33. Rxe4 {[%clk 0:12:47]}  Rbd8 {[%clk 0:15:43]} 34. Rfe1 {[%clk 0:12:47]}  Rd6 {[%clk 0:15:43]} 35. Qc4 {[%clk 0:12:47]}  Rd5 {[%clk 0:06:46]} 36. R1e2 {[%clk 0:00:16]}  Qd7 {[%clk 0:06:46]} 37. Qc3 {[%clk 0:00:16]}  Qd6 {[%clk 0:06:46]} 38. Qc4 {[%clk 0:00:16]}  h5 {[%clk 0:06:46]} 39. Kf2 {[%clk 0:00:16]}  Kf7 {[%clk 0:06:46]} 40. Ke3 {[%clk 0:00:16]}  Rb5 {[%clk 0:06:46]} 41. Rb2 {[%clk 0:00:16]}  Qd5 {[%clk 0:04:49]} 42. Kd3 {[%clk 0:00:46]}  Qf5 {[%clk 0:04:49]} 43. Re2 {[%clk 0:00:46]}  Rd5 {[%clk 0:04:49]} 44. Kc3 {[%clk 0:00:46]}  g6 {[%clk 0:04:49]} 45. R2e3 {[%clk 0:00:04]}  Qh3 {[%clk 0:02:39]} 46. Qe2 {[%clk 0:00:04]}  Rd6 {[%clk 0:02:39]} 47. f5 {[%clk 0:00:29]}  gxf5 {[%clk 0:01:22]} 48. Qxh5+ {[%clk 0:00:29]}  Kf8 {[%clk 0:01:22]} 49. Qh8+ {[%clk 0:00:29]}  Kf7 {[%clk 0:01:22]} 50. Qh7+ {[%clk 0:00:29]}  Kf8 {[%clk 0:01:22]} 51. Qh8+ {[%clk 0:00:29]}  Kf7 {[%clk 0:01:22]} 52. Qh7+ {[%clk 0:00:29]}  Kf8 {[%clk 0:01:22]} 53. Rf4 {[%clk 0:00:29]}  Red8 {[%clk 0:01:22]} 54. Qh8+ {[%clk 0:00:29]}  Kf7 {[%clk 0:01:22]} 55. Qh7+ {[%clk 0:00:29]}  Kf8 {[%clk 0:01:22]} 56. h5 {[%clk 0:00:29]}  Qh1 {[%clk 0:00:59]} 57. Qh8+ {[%clk 0:00:19]}  Kf7 {[%clk 0:00:59]} 58. Qh7+ {[%clk 0:00:19]}  Kf8 {[%clk 0:00:59]} 59. Qh8+ {[%clk 0:00:19]}  Kf7 {[%clk 0:00:59]} 60. Qh7+ {[%clk 0:00:19]}  Kf8 {[%clk 0:00:59]} 61. Qh8+ {[%clk 0:00:19]}  Kf7 {[%clk 0:00:59]} 1/2-1/2


[Site "http://www.Chess.com"]